bitfinex/quotes_SOLUSD_20241121
["timestamp","ask_amount","ask_price","bid_price","bid_amount"]
[1732194143006,23.37953979,243.08,242.99,37.78323979]
[1732194143206,23.37953979,243.04,242.97,27.49513979]
[1732194143407,23.37953979,243.02,242.94,10.2905]
[1732194144423,23.37953979,243.0,242.92,4.1165]
[1732194145419,0.1,243.08,242.97,23.37953979]
[1732194145420,23.37953979,243.06,242.97,23.37953979]
[1732194146116,23.37953979,243.04,242.97,23.37953979]
[1732194146420,23.37953979,243.04,242.97,27.49513979]
[1732194146929,4.1144,243.05,242.97,27.49513979]
[1732194147431,4.1144,243.05,242.92,10.2914]
[1732194147432,23.37953979,243.04,242.95,27.49543979]
[1732194147737,23.37953979,243.04,242.95,23.37953979]
[1732194147932,23.37953979,243.02,242.93,27.49583979]
[1732194148240,23.37953979,242.96,242.9,30.0765]
[1732194148620,23.37953979,242.98,242.9,30.0765]
[1732194148827,23.37953979,242.98,242.9,34.1933]
[1732194149428,23.37953979,242.98,242.9,30.0765]
[1732194149741,23.37953979,242.96,242.9,30.0765]
[1732194150038,23.37953979,242.98,242.9,30.0765]
[1732194150614,4.1157,242.97,242.9,30.0765]
[1732194151319,4.1154,242.99,242.91,23.37953979]
[1732194151555,47.15642379,243.01,242.9,44.4856]
[1732194151556,23.37953979,243.07,242.97,23.37953979]
[1732194151920,23.37953979,243.09,243.01,23.37953979]
[1732194152118,23.37953979,243.07,242.99,23.37953979]
[1732194152318,23.37953979,243.07,242.97,35.42073979]
[1732194152528,27.49363979,243.07,242.98,4.1155]
[1732194152721,23.37953979,243.11,243.03,23.37953979]
[1732194152935,23.37953979,243.13,243.05,23.37953979]
[1732194153419,23.37953979,243.07,242.99,23.37953979]
[1732194153616,23.37953979,243.07,242.98,41.5149]
[1732194153817,23.37953979,243.05,242.98,41.5149]
[1732194154324,23.37953979,243.01,242.93,33.67023979]
[1732194154522,23.37953979,242.99,242.93,10.2907]
[1732194154736,23.37953979,243.01,242.93,14.4071]
[1732194155138,23.37953979,242.99,242.92,29.3402]
[1732194155647,23.37953979,243.03,242.95,23.37953979]
[1732194156418,36.44676591,243.12,242.99,23.37953979]
[1732194156419,23.37953979,243.09,242.99,23.37953979]
[1732194156621,4.1136,243.1,243.02,4.1148]
[1732194157124,23.37953979,243.11,243.02,14.402]
[1732194157426,23.37953979,243.11,243.03,23.37953979]
[1732194157648,0.1,243.2,243.07,23.37953979]
[1732194157649,23.37953979,243.15,243.07,23.37953979]
[1732194158127,23.37953979,243.13,243.05,23.37953979]
[1732194158330,23.37953979,243.11,243.03,30.1979]
[1732194158541,4.1124,243.17,243.03,30.1979]
[1732194158542,23.37953979,243.09,243.03,30.1979]
[1732194158742,23.37953979,243.09,243.04,4.1145]
[1732194158925,23.37953979,243.11,243.03,53.57743979]
[1732194159124,23.37953979,243.09,243.03,30.1979]
[1732194159346,23.776884,243.1,243.03,30.1979]
[1732194159347,23.37953979,243.11,243.03,53.57743979]
[1732194159638,23.37953979,243.11,243.03,67.97873979]
[1732194160626,23.37953979,243.09,243.03,30.1979]
[1732194161432,27.49263979,243.13,243.03,63.86413979]
[1732194161737,23.37953979,243.11,243.03,63.86413979]
[1732194162035,23.37953979,243.11,243.03,30.1979]
[1732194162342,23.37953979,243.09,243.03,30.1979]
[1732194162526,23.37953979,243.07,243.03,30.1979]
[1732194162725,0.1,243.16,242.98,21.8733]
[1732194162726,23.37953979,243.05,242.98,11.5847]
[1732194163341,23.37953979,243.05,242.97,52.31873979]
[1732194163953,4.1145,243.04,242.97,52.31873979]
[1732194164152,4.1145,243.04,242.97,56.43433979]
[1732194164833,23.37953979,242.99,242.93,12.5553]
[1732194165049,23.37953979,242.99,242.91,28.9392]
[1732194165248,23.37953979,242.95,242.88,12.52]
[1732194165853,27.893084,242.94,242.85,54.73693979]
[1732194166029,23.37953979,242.91,242.85,31.3574]
[1732194166227,23.37953979,242.89,242.81,23.37953979]
[1732194166829,23.37953979,242.93,242.85,23.37953979]
[1732194167153,47.15642379,242.93,242.85,23.37953979]
[1732194167947,23.47953979,242.95,242.87,23.37953979]
[1732194168251,4.116,242.96,242.85,33.67393979]
[1732194168252,23.37953979,242.93,242.85,33.67393979]
[1732194168470,23.37953979,242.89,242.81,23.37953979]
[1732194169871,23.37953979,242.89,242.79,29.3689]
[1732194169872,23.776884,242.86,242.79,52.74843979]
[1732194170166,27.894584,242.86,242.79,52.74843979]
[1732194170740,23.37953979,242.87,242.79,52.74843979]
[1732194171062,27.49663979,242.89,242.81,23.37953979]
[1732194171539,23.37953979,242.93,242.85,23.37953979]
[1732194171735,23.37953979,242.95,242.87,23.37953979]
[1732194171968,23.37953979,242.93,242.85,23.37953979]
[1732194172263,23.37953979,242.91,242.83,23.37953979]
[1732194172938,4.1162,242.94,242.85,23.37953979]
[1732194172939,20.0,242.92,242.85,23.37953979]
[1732194174140,23.776884,242.91,242.85,23.37953979]
[1732194174763,23.776884,242.91,242.81,23.37953979]
[1732194174764,47.15642379,242.91,242.81,23.37953979]
[1732194174964,47.15642379,242.91,242.81,27.49783979]
[1732194175171,23.37953979,242.87,242.79,52.74843979]
[1732194175342,23.776884,242.86,242.79,52.74843979]
[1732194175544,23.776884,242.86,242.81,23.37953979]
[1732194175744,23.776884,242.88,242.81,23.37953979]
[1732194176044,4.1174,242.87,242.81,23.37953979]
[1732194176370,23.776884,242.86,242.79,63.04533979]
[1732194176749,23.776884,242.86,242.79,29.3689]
[1732194176948,23.776884,242.84,242.75,23.37953979]
[1732194177450,23.776884,242.82,242.75,23.37953979]
[1732194177868,23.776884,242.82,242.74,15.0]
[1732194177869,23.37953979,242.77,242.74,15.0]
[1732194178046,23.37953979,242.75,242.74,15.0]
[1732194178463,47.15642379,242.75,242.74,15.0]
[1732194178977,67.15642379,242.75,242.74,15.0]
[1732194179157,0.5,242.68,242.43,14.4371]
[1732194179355,23.37953979,242.54,242.43,23.37953979]
[1732194179550,23.37953979,242.46,242.37,4.1259]
[1732194179753,23.37953979,242.44,242.38,0.94302924]
[1732194180049,23.37953979,242.42,242.38,0.94302924]
[1732194180841,23.37953979,242.44,242.38,0.94302924]
[1732194181047,23.37953979,242.44,242.39,4.1255]
[1732194181271,23.37953979,242.42,242.38,0.94302924]
[1732194181473,4.1235,242.51,242.38,0.94302924]
[1732194181474,23.37953979,242.4,242.38,0.94302924]
[1732194181680,23.37953979,242.4,242.37,10.3148]
[1732194182272,23.37953979,242.4,242.32,4.1267]
[1732194182771,23.37953979,242.38,242.32,4.1267]
[1732194182947,23.37953979,242.34,242.23,10.3205]
[1732194183147,23.37953979,242.28,242.23,10.3205]
[1732194184481,23.37953979,242.34,242.25,23.37953979]
[1732194184662,4.1256,242.39,242.23,10.3205]
[1732194184973,23.37953979,242.37,242.3,23.37953979]
[1732194185177,23.37953979,242.41,242.32,23.37953979]
[1732194185471,23.37953979,242.45,242.36,23.37953979]
[1732194186385,23.37953979,242.47,242.38,54.31833979]
[1732194186688,0.97112612,242.62,242.41,38.16528918]
[1732194186689,38.16528918,242.5,242.41,38.16528918]
[1732194186850,38.16528918,242.5,242.38,30.9388]
[1732194186851,38.16528918,242.44,242.38,30.9388]
[1732194187773,38.16528918,242.52,242.38,30.9388]
[1732194187774,38.16528918,242.46,242.39,14.4394]
[1732194187974,38.16528918,242.48,242.39,52.60468918]
[1732194188184,38.16528918,242.5,242.41,38.16528918]
[1732194188651,38.16528918,242.56,242.47,38.16528918]
[1732194188855,38.16528918,242.6,242.51,38.16528918]
[1732194189095,38.16528918,242.56,242.47,38.16528918]
[1732194189264,38.16528918,242.54,242.47,38.16528918]
[1732194189466,38.16528918,242.54,242.45,38.16528918]
[1732194189666,38.16528918,242.56,242.48,38.16528918]
[1732194189871,38.16528918,242.56,242.49,14.4335]
[1732194190074,38.16528918,242.54,242.46,4.1242]
[1732194190248,38.16528918,242.5,242.44,4.1247]
[1732194190452,38.16528918,242.48,242.44,4.1247]
[1732194190850,38.16528918,242.53,242.44,42.28998918]
[1732194191056,38.16528918,242.53,242.44,52.60178918]
[1732194191595,38.16528918,242.59,242.5,38.16528918]
[1732194191752,38.16528918,242.61,242.52,38.16528918]
[1732194191952,38.16528918,242.65,242.56,38.16528918]
[1732194192896,38.16528918,242.67,242.58,38.16528918]
[1732194193071,38.16528918,242.73,242.64,38.16528918]
[1732194193482,10.2954,242.83,242.56,0.5]
[1732194193483,38.16528918,242.75,242.67,38.16528918]
[1732194193881,38.16528918,242.71,242.66,10.3024]
[1732194194071,38.16528918,242.67,242.6,38.16528918]
[1732194194276,38.16528918,242.69,242.6,38.16528918]
[1732194194577,38.16528918,242.77,242.68,38.16528918]
[1732194195070,38.16528918,242.79,242.7,38.16528918]
[1732194195267,38.16528918,242.81,242.72,38.16528918]
[1732194195468,38.16528918,242.85,242.76,38.16528918]
[1732194195684,38.16528918,242.77,242.71,31.9612]
[1732194196196,38.16528918,242.8,242.72,42.28518918]
[1732194196366,38.16528918,242.86,242.76,38.16528918]
[1732194196572,38.16528918,242.86,242.72,14.4198]
[1732194196573,38.16528918,242.84,242.74,38.16528918]
[1732194196905,38.16528918,242.86,242.76,38.16528918]
[1732194197692,38.16528918,242.84,242.77,4.1191]
[1732194197973,4.1169,242.9,242.77,14.4169]
[1732194197974,38.16528918,242.86,242.77,14.4169]
[1732194198202,38.16528918,242.88,242.78,38.16528918]
[1732194198506,38.16528918,242.92,242.82,38.16528918]
[1732194198672,38.16528918,242.92,242.77,14.4169]
[1732194198673,38.16528918,242.88,242.8,38.16528918]
[1732194198875,38.16528918,242.88,242.78,38.16528918]
[1732194199070,38.16528918,242.86,242.77,14.4169]
[1732194199273,38.16528918,242.86,242.78,38.16528918]
[1732194199478,38.16528918,242.86,242.77,14.4169]
[1732194199684,14.4056,242.96,242.74,4.1195]
[1732194199685,38.16528918,242.8,242.74,4.1195]
[1732194200000,38.16528918,242.76,242.71,31.9612]
[1732194200167,38.16528918,242.82,242.73,38.16528918]
[1732194200369,4.1173,242.88,242.72,14.4198]
[1732194200591,38.16528918,242.86,242.72,14.4198]
[1732194201100,38.16528918,242.86,242.77,38.16528918]
[1732194201396,38.16528918,242.86,242.72,14.4198]
[1732194201397,38.16528918,242.9,242.82,38.16528918]
[1732194201582,38.16528918,242.9,242.8,38.16528918]
[1732194201783,38.16528918,242.9,242.82,38.16528918]
[1732194202199,38.16528918,242.88,242.81,10.2961]
[1732194202667,38.16528918,242.88,242.81,14.4145]
[1732194203099,42.28228918,242.9,242.81,14.4145]
[1732194204123,38.16528918,242.88,242.81,14.4145]
[1732194204602,38.16528918,242.9,242.81,52.57978918]
[1732194205572,38.16528918,242.92,242.83,38.16528918]
[1732194205795,38.26528918,243.0,242.81,14.4145]
[1732194205796,38.16528918,242.94,242.85,38.16528918]
[1732194206216,38.16528918,242.92,242.83,38.16528918]
[1732194206500,38.16528918,242.9,242.81,52.57978918]
[1732194206800,23.40933491,242.9,242.81,37.82383491]
[1732194208095,23.40933491,242.88,242.81,10.2961]
[1732194208322,23.40933491,242.86,242.79,16.2432]
[1732194208497,23.40933491,242.84,242.79,12.1246]
[1732194208701,23.40933491,242.84,242.77,4.119]
[1732194210603,23.40933491,242.86,242.77,27.52833491]
[1732194210908,4.1164,242.93,242.79,23.40933491]
[1732194210909,23.40933491,242.88,242.79,23.40933491]
[1732194211120,23.40933491,242.9,242.82,23.40933491]
[1732194211299,23.40933491,242.92,242.82,23.40933491]
[1732194211668,23.40933491,242.92,242.84,23.40933491]
[1732194211992,4.1155,242.98,242.87,23.40933491]
[1732194212197,23.40933491,242.96,242.87,23.40933491]
[1732194212397,23.40933491,242.94,242.85,65.81053491]
[1732194212824,23.40933491,242.96,242.87,23.40933491]
[1732194213003,23.40933491,242.98,242.89,23.40933491]
[1732194213707,23.40933491,243.02,242.93,23.40933491]
[1732194213913,23.40933491,243.02,242.86,34.9993]
[1732194213914,23.40933491,243.05,242.96,23.40933491]
[1732194214124,0.1,243.11,242.88,23.40933491]
[1732194214125,23.40933491,243.09,243.0,23.40933491]
[1732194214317,23.40933491,243.09,243.0,53.68973491]
[1732194214619,37.97882208,243.1,243.01,37.97882208]
[1732194214826,42.09242208,243.1,243.01,37.97882208]
[1732194215211,37.97882208,243.12,243.03,37.97882208]
[1732194215415,37.97882208,243.14,243.07,37.97882208]
[1732194215623,37.97882208,243.12,243.03,37.97882208]
[1732194216239,37.97882208,243.1,243.01,37.97882208]
[1732194216616,42.09232208,243.1,243.01,37.97882208]
[1732194216816,37.97882208,243.05,243.0,30.2804]
[1732194217544,37.97882208,243.01,242.93,43.9016]
[1732194218007,37.97882208,242.99,242.93,43.9016]
[1732194218403,37.97882208,243.03,242.94,37.97882208]
[1732194218636,37.97882208,243.07,242.98,37.97882208]
[1732194218816,42.09292208,243.07,242.98,37.97882208]
[1732194219132,37.97882208,243.07,242.99,4.1153]
[1732194219335,37.97882208,243.05,242.94,37.97882208]
[1732194219505,37.97882208,243.03,242.95,4.1159]
[1732194219709,37.97882208,243.05,242.96,37.97882208]
[1732194220233,37.97882208,243.07,242.98,37.97882208]
[1732194220406,37.97882208,243.05,242.94,48.26942208]
[1732194220614,37.97882208,243.01,242.93,43.9016]
[1732194220809,37.97882208,243.05,242.96,37.97882208]
[1732194221133,37.97882208,243.02,242.93,96.28762208]
[1732194222238,37.97882208,243.0,242.93,43.9016]
[1732194222933,37.97882208,243.0,242.93,48.0178]
[1732194224022,37.97882208,243.02,242.93,85.99662208]
[1732194224344,37.97882208,243.06,242.97,37.97882208]
[1732194225544,37.97882208,243.02,242.93,92.17142208]
[1732194225724,37.97882208,243.0,242.93,54.1926]
[1732194226036,4.1142,243.06,242.93,54.1926]
[1732194226037,37.97882208,243.02,242.93,92.17142208]
[1732194226417,37.97882208,243.02,242.94,23.776884]
[1732194226737,37.97882208,243.02,242.95,14.4061]
[1732194226926,37.97882208,243.04,242.95,52.38492208]
[1732194228024,37.97882208,243.06,242.98,23.776884]
[1732194228225,0.1,243.19,242.98,23.776884]
[1732194228226,37.97882208,243.1,243.02,37.97882208]
[1732194228432,37.97882208,243.16,243.06,37.97882208]
[1732194228634,37.97882208,243.14,243.06,37.97882208]
[1732194228939,37.97882208,243.14,243.07,14.3991]
[1732194230131,37.97882208,243.12,243.05,4.1142]
[1732194230327,37.97882208,243.12,243.03,4.1146]
[1732194230523,37.97882208,243.08,243.0,37.97882208]
[1732194230729,37.97882208,243.06,242.99,4.1153]
[1732194231019,37.97882208,243.04,242.98,10.2885]
[1732194231340,37.97882208,243.1,243.02,37.97882208]
[1732194231725,37.97882208,243.1,243.0,37.97882208]
[1732194232040,37.97882208,243.04,242.98,14.404]
[1732194234554,10.2821,243.14,243.0,37.97882208]
[1732194234555,37.97882208,243.08,243.0,37.97882208]
[1732194235125,37.97882208,243.06,242.98,14.404]
[1732194235334,37.97882208,243.04,242.98,14.404]
[1732194235633,37.97882208,243.06,243.0,5.0]
[1732194236027,37.97882208,243.04,243.0,5.0]
[1732194236227,37.97882208,243.12,243.0,5.0]
[1732194236228,37.97882208,243.02,243.0,5.0]
[1732194236459,4.115,243.01,243.0,5.0]
[1732194237035,37.97882208,243.02,243.0,5.0]
[1732194237345,11.8085,243.11,243.0,57.38192208]
[1732194237346,37.97882208,243.08,243.0,57.38192208]
[1732194237653,37.97882208,243.06,243.0,15.288]
[1732194238029,37.97882208,243.04,243.0,5.0]
[1732194238453,37.97882208,243.08,243.0,9.115]
[1732194238658,37.97882208,243.08,243.0,57.38182208]
[1732194238837,42.09232208,243.1,243.02,37.97882208]
[1732194239040,37.97882208,243.1,243.02,37.97882208]
[1732194239350,42.09232208,243.1,243.02,37.97882208]
[1732194239542,37.97882208,243.08,243.0,57.38182208]
[1732194240531,42.09272208,243.08,243.0,19.403]
[1732194240731,37.97882208,243.05,243.0,19.403]
[1732194241689,37.97882208,243.09,243.0,57.38182208]
[1732194241958,37.97882208,243.09,243.02,37.97882208]
[1732194242161,37.97882208,243.11,243.02,37.97882208]
[1732194242341,37.97882208,243.11,243.04,37.97882208]
[1732194242541,37.97882208,243.07,243.0,15.288]
[1732194242857,23.38029815,243.01,243.0,5.0]
[1732194243747,27.49529815,243.01,243.0,5.0]
[1732194244838,23.38029815,243.01,243.0,5.0]
[1732194250961,23.38029815,243.07,243.0,5.0]
[1732194251272,23.38029815,243.04,243.0,5.0]
[1732194251460,23.38029815,243.06,243.0,5.0]
[1732194251673,23.38029815,243.06,243.0,9.1151]
[1732194252377,23.38029815,243.08,243.0,19.4031]
[1732194252558,23.38029815,243.04,243.0,5.0]
[1732194252759,27.49479815,243.04,243.0,5.0]
[1732194253156,27.49449815,243.06,243.0,5.0]
[1732194253370,23.38029815,243.08,243.0,9.1151]
[1732194253562,23.38029815,243.08,243.0,19.4031]
[1732194254455,27.49419815,243.08,243.0,19.4031]
[1732194254666,27.49419815,243.08,243.0,5.0]
[1732194254667,23.38029815,243.06,243.0,5.0]
[1732194254884,23.38029815,243.04,243.0,5.0]
[1732194255353,23.38029815,243.06,243.01,4.115]
[1732194255557,27.49389815,243.1,243.02,23.38029815]
[1732194255758,27.49389815,243.1,243.01,26.9831]
[1732194256385,12.28112612,243.21,243.05,14.4002]
[1732194256386,23.38029815,243.12,243.05,14.4002]
[1732194256718,4.113,243.13,243.06,31.166]
[1732194257175,23.38029815,243.12,243.06,31.166]
[1732194257383,23.38029815,243.1,243.06,31.166]
[1732194257582,23.38029815,243.08,243.06,31.166]
[1732194257884,23.38029815,243.08,243.01,12.5805]
[1732194258477,23.38029815,243.1,243.02,23.38029815]
[1732194259067,27.49379815,243.1,243.02,23.38029815]
[1732194259279,23.38029815,243.12,243.04,23.38029815]
[1732194260177,23.38029815,243.14,243.04,23.38029815]
[1732194260482,23.38029815,243.14,243.01,26.983]
[1732194260483,23.38029815,243.14,243.07,14.3991]
[1732194260860,4.1125,243.16,243.07,14.3991]
[1732194260861,27.49279815,243.16,243.07,14.3991]
[1732194261587,23.38029815,243.14,243.07,14.3991]
[1732194261766,23.38029815,243.14,243.07,10.2851]
[1732194261967,23.38029815,243.14,243.1,5.0]
[1732194263366,23.38029815,243.14,243.1,9.1134]
[1732194264990,27.49279815,243.16,243.1,5.0]
[1732194265162,23.38029815,243.16,243.1,9.1135]
[1732194265576,27.49289815,243.16,243.1,5.0]
[1732194265884,27.49289815,243.16,243.1,9.1135]
[1732194266269,27.49289815,243.16,243.11,32.3489]
[1732194266270,23.38029815,243.16,243.11,32.3489]
[1732194266479,23.38029815,243.14,243.11,32.3489]
[1732194266666,23.38029815,243.16,243.11,32.3489]
[1732194267175,27.49279815,243.16,243.11,32.3489]
[1732194267785,23.38029815,243.16,243.11,36.4622]
[1732194268370,23.38029815,243.16,243.11,32.3489]
[1732194268579,23.38029815,243.24,243.11,32.3489]
[1732194268580,23.38029815,243.12,243.11,32.3489]
[1732194269172,23.38029815,243.14,243.11,32.3489]
[1732194269376,23.38029815,243.16,243.11,36.4622]
[1732194270590,23.38029815,243.12,243.11,32.3489]
[1732194271898,27.49349815,243.12,243.1,5.0]
[1732194273383,23.38029815,243.14,243.1,5.0]
[1732194273578,23.38029815,243.16,243.1,5.0]
[1732194273774,23.38029815,243.14,243.1,5.0]
[1732194274482,23.38029815,243.12,243.1,5.0]
[1732194275294,23.38029815,243.14,243.1,5.0]
[1732194275680,18.38029815,243.14,243.09,4.1136]
[1732194276182,23.38029815,243.12,243.07,14.3989]
[1732194276382,23.38029815,243.12,243.05,53.14899815]
[1732194276383,23.38029815,243.1,243.05,29.7687]
[1732194276585,23.38029815,243.1,243.05,33.883]
[1732194277096,23.38029815,243.1,243.05,29.7687]
[1732194277501,23.38029815,243.08,243.05,29.7687]
[1732194278208,23.38029815,243.1,243.05,29.7687]
[1732194279499,4.1133,243.12,243.05,44.1689]
[1732194279500,23.38029815,243.12,243.05,44.1689]
[1732194280900,23.38029815,243.1,243.05,29.7687]
[1732194281113,23.38029815,243.08,243.05,29.7687]
[1732194286599,4.1137,243.09,243.05,29.7687]
[1732194286791,14.61052521,243.07,243.05,29.7687]
[1732194287895,14.61052521,243.07,243.0,10.2877]
[1732194288096,14.61052521,243.03,242.97,31.1258]
[1732194288281,14.61052521,243.01,242.97,31.1258]
[1732194288482,14.61052521,243.03,242.97,35.2415]
[1732194288987,14.61052521,243.05,242.97,45.5308]
[1732194289409,18.72462521,243.07,242.98,38.38740921]
[1732194289582,18.72432521,243.09,243.0,14.61052521]
[1732194290301,18.72432521,243.09,243.01,4.115]
[1732194290506,14.61052521,243.07,243.01,4.115]
[1732194291506,14.61052521,243.09,243.01,4.115]
[1732194292008,14.61052521,243.13,243.04,14.61052521]
[1732194293411,4.1131,243.12,243.05,4.1143]
[1732194294826,14.61052521,243.11,243.03,23.776884]
[1732194295315,4.1131,243.12,243.01,10.2876]
[1732194295316,14.61052521,243.07,243.01,10.2876]
[1732194295813,14.61052521,243.05,242.98,4.1155]
[1732194296593,14.61052521,243.05,242.97,31.1258]
[1732194296594,14.61052521,243.03,242.97,31.1258]
[1732194296906,20.0,243.11,242.97,31.1258]
[1732194296907,14.61052521,242.99,242.97,31.1258]
[1732194297298,14.61052521,242.99,242.91,32.0198]
[1732194297501,14.61052521,242.96,242.91,32.0198]
[1732194297910,14.61052521,242.94,242.91,32.0198]
[1732194298797,14.61052521,243.0,242.91,32.0198]
[1732194298798,23.40284432,242.93,242.91,32.0198]
[1732194301199,23.40284432,242.93,242.86,32.1557]
[1732194301412,23.40284432,242.87,242.86,32.1557]
[1732194302813,23.40284432,242.91,242.86,32.1557]
[1732194303208,4.1163,242.94,242.86,32.1557]
[1732194303209,23.40284432,242.93,242.86,32.1557]
[1732194303592,23.40284432,242.93,242.87,23.776884]
[1732194303796,23.40284432,243.0,242.86,42.4496]
[1732194303797,23.40284432,242.91,242.86,42.4496]
[1732194303992,23.40284432,242.91,242.86,32.1557]
[1732194305119,23.40284432,242.89,242.86,32.1557]
[1732194305909,23.40284432,242.91,242.86,32.1557]
[1732194306117,23.40284432,242.91,242.86,36.2732]
[1732194306311,23.40284432,242.89,242.86,32.1557]
[1732194306825,23.40284432,242.91,242.86,32.1557]
[1732194307125,23.40284432,242.93,242.86,36.2732]
[1732194307321,23.40284432,242.95,242.88,23.40284432]
[1732194307618,4.1155,242.98,242.91,4.1167]
[1732194307821,23.40284432,242.99,242.91,4.1167]
[1732194308006,23.40284432,243.03,242.96,43.1551]
[1732194308206,23.40284432,243.05,242.98,23.40284432]
[1732194308607,6.76440469,243.16,242.98,23.40284432]
[1732194308608,23.40284432,243.07,242.99,23.776884]
[1732194308821,23.40284432,243.07,243.0,23.40284432]
[1732194309000,23.40284432,243.07,243.01,23.776884]
[1732194309341,23.40284432,243.09,243.01,23.776884]
[1732194309807,23.40284432,243.07,243.0,10.2876]
[1732194310002,23.40284432,243.03,243.0,10.2876]
[1732194310222,23.40284432,243.05,243.0,14.4028]
[1732194310402,23.40284432,243.09,243.01,23.776884]
[1732194310818,23.40284432,243.09,243.02,23.40284432]
[1732194311021,4.113,243.13,243.0,10.2876]
[1732194311022,23.40284432,243.07,243.0,10.2876]
[1732194311426,23.40284432,243.05,243.0,10.2876]
[1732194312318,23.40284432,243.01,242.96,43.1551]
[1732194312526,23.40284432,242.97,242.96,30.7124]
[1732194312707,23.40284432,242.97,242.9,42.0634]
[1732194313017,23.40284432,242.94,242.9,42.0634]
[1732194313215,23.40284432,242.92,242.9,42.0634]
[1732194313443,23.40284432,242.92,242.82,42.0634]
[1732194313721,23.40284432,242.89,242.83,0.94128167]
[1732194314107,22.90284432,242.89,242.83,0.94128167]
[1732194314726,22.90284432,242.89,242.82,46.1815]
[1732194315131,23.87397044,243.0,242.82,46.1815]
[1732194315132,23.40284432,242.87,242.82,42.0634]
[1732194316150,23.40284432,242.89,242.82,46.1815]
[1732194316314,23.40284432,242.89,242.82,69.58434432]
[1732194316515,27.51964432,242.91,242.82,69.58434432]
[1732194316810,23.40284432,242.89,242.82,46.1815]
[1732194317208,23.40284432,242.89,242.82,69.58434432]
[1732194317410,23.40284432,242.89,242.82,46.1815]
[1732194317608,23.40284432,242.87,242.82,46.1815]
[1732194318619,23.40284432,242.89,242.82,46.1815]
[1732194319938,23.40284432,242.85,242.82,29.377]
[1732194320116,23.40284432,242.83,242.76,44.8403]
[1732194320320,23.40284432,242.88,242.76,44.8403]
[1732194320321,23.40284432,242.79,242.76,44.8403]
[1732194320621,14.64372368,242.79,242.76,44.8403]
[1732194321012,14.64372368,242.79,242.76,32.1749]
[1732194321513,14.64372368,242.77,242.71,44.8403]
[1732194321727,14.64372368,242.73,242.71,44.8403]
[1732194322532,14.64372368,242.75,242.71,44.8403]
[1732194323433,14.64372368,242.73,242.71,44.8403]
[1732194323634,14.64372368,242.73,242.6,10.3048]
[1732194323941,14.64372368,242.76,242.6,24.94852368]
[1732194323942,14.64372368,242.68,242.6,24.94852368]
[1732194324122,14.64372368,242.68,242.61,0.94213523]
[1732194325043,14.64372368,242.68,242.63,4.1215]
[1732194325538,14.64372368,242.68,242.63,14.4252]
[1732194325728,4.12,242.72,242.64,23.776884]
[1732194325933,14.64372368,242.74,242.67,23.776884]
[1732194326122,14.64372368,242.76,242.68,14.64372368]
[1732194326429,14.64372368,242.76,242.69,23.776884]
[1732194326636,14.64372368,242.78,242.71,23.776884]
[1732194326839,14.64372368,242.8,242.73,23.776884]
[1732194327137,14.64372368,242.82,242.75,23.776884]
[1732194327342,14.64372368,242.84,242.77,23.776884]
[1732194327520,4.1165,242.92,242.79,23.776884]
[1732194327521,14.64372368,242.86,242.79,23.776884]
[1732194328531,14.64372368,242.88,242.8,14.4151]
[1732194328717,23.42451933,242.82,242.78,12.6654]
[1732194328922,23.42451933,242.8,242.76,32.1749]
[1732194329139,23.42451933,242.78,242.76,32.1749]
[1732194331115,29.691498,243.0,242.77,47.20140333]
[1732194331342,23.42451933,242.94,242.85,23.42451933]
[1732194331541,23.42451933,242.94,242.86,23.776884]
[1732194331932,23.42451933,242.9,242.83,23.42451933]
[1732194332138,23.42451933,242.88,242.81,10.296]
[1732194332746,23.42451933,242.92,242.84,23.776884]
[1732194333224,27.54111933,242.92,242.84,27.894784]
[1732194334143,23.42451933,242.94,242.85,23.42451933]
[1732194334349,4.1147,243.03,242.89,23.42451933]
[1732194334540,23.42451933,242.99,242.89,23.42451933]
[1732194334843,23.42451933,242.97,242.89,23.42451933]
[1732194335016,14.4014,243.03,242.87,47.20140333]
[1732194335017,23.42451933,242.95,242.87,47.20140333]
[1732194335216,23.42451933,242.95,242.88,4.1172]
[1732194335418,23.42451933,242.95,242.87,47.20140333]
[1732194335623,23.42451933,242.95,242.86,41.9968]
[1732194335624,23.42451933,242.93,242.86,41.9968]
[1732194335851,23.42451933,242.91,242.86,41.9968]
[1732194336217,23.42451933,242.93,242.86,41.9968]
[1732194336417,23.42451933,242.93,242.87,23.776884]
[1732194336822,23.42451933,242.95,242.87,47.20140333]
[1732194337342,4.1158,242.97,242.9,23.42451933]
[1732194337534,23.42451933,242.98,242.91,23.776884]